[Event "*** Titled Tuesday Blitz AM"]
[Site "Chess.com"]
[Date "2020.01.07"]
[Round "6"]
[White "attack2mateU"]
[Black "Orest_Vovk"]
[Result "1-0"]
[WhiteElo "2711"]
[BlackElo "2416"]
[TimeControl "180+2"]
[EndTime "10:18:20 PST"]
[Termination "attack2mateU won by resignation"]

1. e4 {[%clk 0:03:01.9]} 1... Nc6 {[%clk 0:02:57.5]} 2. Nf3 {[%clk 0:03:01]}
2... d5 {[%clk 0:02:58.3]} 3. exd5 {[%clk 0:02:58.1]} 3... Qxd5 {[%clk
0:03:00.2]} 4. Nc3 {[%clk 0:02:57.2]} 4... Qa5 {[%clk 0:03:00.7]} 5. Bb5 {[%clk
0:02:44.7]} 5... Bd7 {[%clk 0:02:56.1]} 6. d4 {[%clk 0:02:42.5]} 6... O-O-O
{[%clk 0:02:55.8]} 7. d5 {[%clk 0:02:27.6]} 7... Nb4 {[%clk 0:02:48.9]} 8. Bxd7+
{[%clk 0:02:28.5]} 8... Rxd7 {[%clk 0:02:46.4]} 9. Ne5 {[%clk 0:02:30.1]} 9...
Nxd5 {[%clk 0:02:29.8]} 10. Nxd7 {[%clk 0:02:21.2]} 10... Nxc3 {[%clk
0:02:30.4]} 11. Qd2 {[%clk 0:02:22]} 11... Qa4 {[%clk 0:02:05.7]} 12. Nxf8
{[%clk 0:02:17.5]} 12... Qe4+ {[%clk 0:02:06.3]} 13. Kf1 {[%clk 0:02:14.3]}
13... Nd5 {[%clk 0:02:00.4]} 14. Qe2 {[%clk 0:01:46.9]} 14... Qxe2+ {[%clk
0:01:54.3]} 15. Kxe2 {[%clk 0:01:48.8]} 15... Ngf6 {[%clk 0:01:55.5]} 16. Nxh7
{[%clk 0:01:48.6]} 16... Rxh7 {[%clk 0:01:54.5]} 17. f3 {[%clk 0:01:40.9]} 17...
Rh5 {[%clk 0:01:45.6]} 18. c4 {[%clk 0:01:39.9]} 18... Re5+ {[%clk 0:01:41.7]}
19. Kf2 {[%clk 0:01:40.2]} 19... Nb4 {[%clk 0:01:42.9]} 20. Rd1 {[%clk
0:01:36.7]} 20... Nd7 {[%clk 0:01:33]} 21. a3 {[%clk 0:01:35.6]} 21... Nc2
{[%clk 0:01:25.3]} 22. Ra2 {[%clk 0:01:32.9]} 22... c5 {[%clk 0:01:06.3]} 23. b4
{[%clk 0:01:30.7]} 23... Nd4 {[%clk 0:01:06.1]} 24. Rad2 {[%clk 0:01:13.5]}
24... Rh5 {[%clk 0:00:43.8]} 25. Bb2 {[%clk 0:01:03.5]} 25... e5 {[%clk
0:00:39.1]} 26. bxc5 {[%clk 0:01:04.2]} 26... Nxc5 {[%clk 0:00:40.1]} 27. Bxd4
{[%clk 0:01:05.1]} 27... exd4 {[%clk 0:00:41.1]} 28. Rxd4 {[%clk 0:01:06.7]}
28... Rxh2 {[%clk 0:00:41.9]} 29. Rd8+ {[%clk 0:00:56.9]} 29... Kc7 {[%clk
0:00:42.9]} 30. Rf8 {[%clk 0:00:58.4]} 30... f6 {[%clk 0:00:32.1]} 31. Rf7+
{[%clk 0:00:56.5]} 31... Kb6 {[%clk 0:00:28.8]} 32. Rxg7 {[%clk 0:00:52.1]}
32... Rh6 {[%clk 0:00:29]} 33. Rd6+ {[%clk 0:00:46.6]} 33... Ka5 {[%clk
0:00:26.9]} 34. Rc7 {[%clk 0:00:43.9]} 34... Rh5 {[%clk 0:00:27.5]} 35. Rd5
{[%clk 0:00:44.1]} 35... Rxd5 {[%clk 0:00:25.1]} 36. cxd5 {[%clk 0:00:45.6]}
36... Ka4 {[%clk 0:00:16]} 37. Rxc5 {[%clk 0:00:45.9]} 1-0

[Event "*** Titled Tuesday Blitz AM"]
[Site "Chess.com"]
[Date "2020.01.07"]
[Round "6"]
[White "KhazarBabazada"]
[Black "Rikikits"]
[Result "1/2-1/2"]
[WhiteElo "2909"]
[BlackElo "2721"]
[TimeControl "180+2"]
[EndTime "10:18:21 PST"]
[Termination "Game drawn by repetition"]

1. e4 {[%clk 0:03:01.9]} 1... c5 {[%clk 0:02:55.8]} 2. Nf3 {[%clk 0:03:00.6]}
2... Nc6 {[%clk 0:02:57.3]} 3. d4 {[%clk 0:03:01.6]} 3... cxd4 {[%clk
0:02:59.2]} 4. Nxd4 {[%clk 0:03:01.6]} 4... Qb6 {[%clk 0:03:01.1]} 5. Nb3 {[%clk
0:03:02.2]} 5... Nf6 {[%clk 0:03:01.6]} 6. Nc3 {[%clk 0:03:03.5]} 6... e6 {[%clk
0:03:03.1]} 7. Be3 {[%clk 0:03:03.6]} 7... Qc7 {[%clk 0:03:03.8]} 8. a3 {[%clk
0:03:04.6]} 8... a6 {[%clk 0:03:04.9]} 9. Be2 {[%clk 0:03:05.5]} 9... d6 {[%clk
0:03:05.9]} 10. O-O {[%clk 0:03:05.4]} 10... b5 {[%clk 0:03:07.5]} 11. g4 {[%clk
0:03:05.5]} 11... Bb7 {[%clk 0:03:08.5]} 12. f4 {[%clk 0:03:03.5]} 12... Be7
{[%clk 0:03:08.6]} 13. g5 {[%clk 0:03:02.6]} 13... Nd7 {[%clk 0:03:09.8]} 14.
Qe1 {[%clk 0:03:03.4]} 14... Nc5 {[%clk 0:03:09.2]} 15. Rd1 {[%clk 0:03:01]}
15... Nxb3 {[%clk 0:03:04.8]} 16. cxb3 {[%clk 0:03:00.1]} 16... Na5 {[%clk
0:03:05.4]} 17. f5 {[%clk 0:02:53.7]} 17... Nxb3 {[%clk 0:02:43.6]} 18. Qg3
{[%clk 0:02:47.8]} 18... e5 {[%clk 0:02:18.7]} 19. f6 {[%clk 0:02:46.5]} 19...
gxf6 {[%clk 0:02:20.6]} 20. gxf6 {[%clk 0:02:45.7]} 20... Bf8 {[%clk 0:02:21.7]}
21. Bg4 {[%clk 0:02:30.9]} 21... Na5 {[%clk 0:02:07.4]} 22. Rc1 {[%clk 0:02:07]}
22... Nc4 {[%clk 0:02:05.3]} 23. b3 {[%clk 0:01:59.4]} 23... Nxe3 {[%clk
0:02:06.1]} 24. Nd5 {[%clk 0:02:00.8]} 24... Nxd5 {[%clk 0:02:06.5]} 25. Rxc7
{[%clk 0:01:59.1]} 25... Nxc7 {[%clk 0:02:08.4]} 26. Rc1 {[%clk 0:01:59.3]}
26... Ne6 {[%clk 0:01:29.5]} 27. Bxe6 {[%clk 0:01:52.1]} 27... fxe6 {[%clk
0:01:31.4]} 28. Qe3 {[%clk 0:01:43.2]} 28... Rg8+ {[%clk 0:01:27.1]} 29. Kf2
{[%clk 0:01:39.1]} 29... Rg4 {[%clk 0:01:18.8]} 30. Rc7 {[%clk 0:01:27.9]} 30...
Rf4+ {[%clk 0:01:17.6]} 31. Kg3 {[%clk 0:01:26]} 31... Bxe4 {[%clk 0:01:16.3]}
32. f7+ {[%clk 0:01:25.5]} 32... Kd8 {[%clk 0:01:01]} 33. Qb6 {[%clk 0:01:25]}
33... Rf3+ {[%clk 0:01:01.7]} 34. Kg4 {[%clk 0:01:24.1]} 34... Rf4+ {[%clk
0:00:57]} 35. Kg3 {[%clk 0:01:10.6]} 35... Rf3+ {[%clk 0:00:53.4]} 36. Kg4
{[%clk 0:01:06.3]} 36... Rf4+ {[%clk 0:00:28.6]} 37. Kh3 {[%clk 0:00:56.7]}
37... Rf3+ {[%clk 0:00:28.2]} 38. Kg4 {[%clk 0:00:49.9]} 1/2-1/2

[Event "*** Titled Tuesday Blitz AM"]
[Site "Chess.com"]
[Date "2020.01.07"]
[Round "6"]
[White "PIwan"]
[Black "Martins-BR"]
[Result "1-0"]
[WhiteElo "2522"]
[BlackElo "2360"]
[TimeControl "180+2"]
[EndTime "10:18:27 PST"]
[Termination "PIwan won by resignation"]

1. c4 {[%clk 0:03:01.9]} 1... f5 {[%clk 0:02:59.8]} 2. Nc3 {[%clk 0:03:02]} 2...
Nf6 {[%clk 0:03:00.6]} 3. d4 {[%clk 0:03:03.5]} 3... d6 {[%clk 0:02:59.9]} 4. g3
{[%clk 0:03:02.5]} 4... g6 {[%clk 0:03:00.1]} 5. Bg2 {[%clk 0:03:03.2]} 5... Bg7
{[%clk 0:03:01.2]} 6. Nf3 {[%clk 0:03:04.8]} 6... O-O {[%clk 0:03:02]} 7. O-O
{[%clk 0:03:06.3]} 7... c6 {[%clk 0:03:03.2]} 8. Qc2 {[%clk 0:03:02.3]} 8... Na6
{[%clk 0:03:02.3]} 9. Rd1 {[%clk 0:02:49.6]} 9... Nb4 {[%clk 0:02:57.6]} 10. Qb3
{[%clk 0:02:50]} 10... a5 {[%clk 0:02:56.9]} 11. d5 {[%clk 0:02:34.9]} 11... Bd7
{[%clk 0:02:50]} 12. Nd4 {[%clk 0:02:30.4]} 12... cxd5 {[%clk 0:02:31]} 13. cxd5
{[%clk 0:02:25.8]} 13... Rb8 {[%clk 0:02:16]} 14. h3 {[%clk 0:02:16.7]} 14...
Na6 {[%clk 0:02:15.9]} 15. Ne6 {[%clk 0:02:05.7]} 15... Bxe6 {[%clk 0:02:15.7]}
16. dxe6 {[%clk 0:02:07.6]} 16... Nc5 {[%clk 0:02:15.6]} 17. Qc4 {[%clk
0:02:05.6]} 17... Qc8 {[%clk 0:02:02.9]} 18. Nd5 {[%clk 0:01:44.4]} 18... Nxd5
{[%clk 0:02:03]} 19. Bxd5 {[%clk 0:01:43.6]} 19... b5 {[%clk 0:02:03.7]} 20. Qc2
{[%clk 0:01:29.6]} 20... Na6 {[%clk 0:01:37.2]} 21. Qxc8 {[%clk 0:01:22.8]}
21... Rfxc8 {[%clk 0:01:37.1]} 22. Bg5 {[%clk 0:01:23.1]} 22... Kf8 {[%clk
0:01:33.1]} 23. Rac1 {[%clk 0:01:15.6]} 23... Nb4 {[%clk 0:01:19.9]} 24. Bb7
{[%clk 0:01:06.8]} 24... Rxc1 {[%clk 0:01:13.5]} 25. Rxc1 {[%clk 0:01:08.7]}
25... Bxb2 {[%clk 0:01:11.9]} 26. Rc7 {[%clk 0:01:05.4]} 26... Re8 {[%clk
0:00:55.6]} 27. Kg2 {[%clk 0:00:49.1]} 27... d5 {[%clk 0:00:33.9]} 28. Bc8
{[%clk 0:00:40.6]} 28... Bg7 {[%clk 0:00:20]} 29. Bd7 {[%clk 0:00:38.8]} 29...
Rb8 {[%clk 0:00:19.9]} 30. a4 {[%clk 0:00:37.4]} 30... bxa4 {[%clk 0:00:20.2]}
31. Bxa4 {[%clk 0:00:39.3]} 31... Bf6 {[%clk 0:00:20.2]} 32. Bxf6 {[%clk
0:00:39.3]} 32... exf6 {[%clk 0:00:21.2]} 33. e7+ {[%clk 0:00:41.2]} 1-0

[Event "*** Titled Tuesday Blitz AM"]
[Site "Chess.com"]
[Date "2020.01.07"]
[Round "6"]
[White "INLOVEWITHF"]
[Black "arjwezhrtdrz"]
[Result "1-0"]
[WhiteElo "2462"]
[BlackElo "2284"]
[TimeControl "180+2"]
[EndTime "10:18:27 PST"]
[Termination "INLOVEWITHF won by resignation"]

1. d4 {[%clk 0:03:01.9]} 1... d6 {[%clk 0:02:47.9]} 2. e4 {[%clk 0:03:01]} 2...
Nf6 {[%clk 0:02:46.5]} 3. Nc3 {[%clk 0:03:01.6]} 3... c6 {[%clk 0:02:47.6]} 4.
f4 {[%clk 0:02:58]} 4... Bg4 {[%clk 0:02:47]} 5. Nf3 {[%clk 0:02:57.6]} 5...
Nbd7 {[%clk 0:02:45.7]} 6. h3 {[%clk 0:02:57.4]} 6... Bxf3 {[%clk 0:02:46.3]} 7.
Qxf3 {[%clk 0:02:59.3]} 7... e5 {[%clk 0:02:48.2]} 8. Be3 {[%clk 0:03:00.5]}
8... Be7 {[%clk 0:02:48.5]} 9. O-O-O {[%clk 0:03:00.9]} 9... Qc7 {[%clk
0:02:49.3]} 10. g4 {[%clk 0:02:59]} 10... O-O-O {[%clk 0:02:46]} 11. g5 {[%clk
0:02:37.1]} 11... Ng8 {[%clk 0:02:21.6]} 12. Bc4 {[%clk 0:02:38]} 12... f6
{[%clk 0:01:59.7]} 13. h4 {[%clk 0:02:28.9]} 13... Kb8 {[%clk 0:01:57.7]} 14.
Bb3 {[%clk 0:02:12.8]} 14... h6 {[%clk 0:01:53.7]} 15. g6 {[%clk 0:02:04.5]}
15... exd4 {[%clk 0:01:42.9]} 16. Bxd4 {[%clk 0:02:04.9]} 16... Nc5 {[%clk
0:01:44.8]} 17. Bxc5 {[%clk 0:02:02.5]} 17... dxc5 {[%clk 0:01:45.6]} 18. Rxd8+
{[%clk 0:01:49.4]} 18... Bxd8 {[%clk 0:01:46.5]} 19. Rd1 {[%clk 0:01:50.5]}
19... Ne7 {[%clk 0:01:47.4]} 20. Qg4 {[%clk 0:01:43.8]} 20... f5 {[%clk
0:01:27.2]} 21. exf5 {[%clk 0:01:43.3]} 21... Rf8 {[%clk 0:01:13.2]} 22. Be6
{[%clk 0:01:38.7]} 22... Nd5 {[%clk 0:00:56.8]} 23. Bxd5 {[%clk 0:01:26.8]}
23... cxd5 {[%clk 0:00:56.6]} 24. Nxd5 {[%clk 0:01:28.7]} 24... Qa5 {[%clk
0:00:46.3]} 25. Kb1 {[%clk 0:01:27.9]} 25... a6 {[%clk 0:00:39.4]} 26. a3 {[%clk
0:01:18.1]} 26... c4 {[%clk 0:00:38.5]} 27. Qe2 {[%clk 0:01:13.5]} 27... Qc5
{[%clk 0:00:27.6]} 28. Qe5+ {[%clk 0:01:13.2]} 28... Ka7 {[%clk 0:00:25.2]} 29.
Qxg7 {[%clk 0:01:12.6]} 29... Rxf5 {[%clk 0:00:22.9]} 30. Qd4 {[%clk 0:01:12.2]}
30... Qxd4 {[%clk 0:00:09.5]} 31. Rxd4 {[%clk 0:01:12.1]} 31... Rf8 {[%clk
0:00:07]} 32. h5 {[%clk 0:01:12]} 32... b5 {[%clk 0:00:07.1]} 33. Ne7 {[%clk
0:01:09]} 33... Bxe7 {[%clk 0:00:07.7]} 34. Rd7+ {[%clk 0:01:09.7]} 34... Kb6
{[%clk 0:00:09.6]} 35. Rxe7 {[%clk 0:01:11.4]} 35... Rxf4 {[%clk 0:00:11]} 36.
g7 {[%clk 0:01:08.6]} 36... Rg4 {[%clk 0:00:12.2]} 37. Re6+ {[%clk 0:01:09.9]}
37... Ka5 {[%clk 0:00:13.4]} 38. Rg6 {[%clk 0:01:11.8]} 1-0

[Event "*** Titled Tuesday Blitz AM"]
[Site "Chess.com"]
[Date "2020.01.07"]
[Round "6"]
[White "Anna_ChessMate"]
[Black "AntonSmirnov"]
[Result "0-1"]
[WhiteElo "2587"]
[BlackElo "2886"]
[TimeControl "180+2"]
[EndTime "10:18:41 PST"]
[Termination "AntonSmirnov won by resignation"]

1. d4 {[%clk 0:02:58.2]} 1... d5 {[%clk 0:02:59.5]} 2. c4 {[%clk 0:02:57.6]}
2... c6 {[%clk 0:03:00.7]} 3. Nc3 {[%clk 0:02:56.8]} 3... dxc4 {[%clk
0:03:01.5]} 4. Nf3 {[%clk 0:02:49.9]} 4... b5 {[%clk 0:03:02.2]} 5. a4 {[%clk
0:02:49.7]} 5... b4 {[%clk 0:03:03.4]} 6. Nb1 {[%clk 0:02:51.1]} 6... Nf6 {[%clk
0:03:02.5]} 7. e3 {[%clk 0:02:51.7]} 7... Ba6 {[%clk 0:03:03]} 8. Qc2 {[%clk
0:02:53]} 8... e6 {[%clk 0:03:03.5]} 9. Bxc4 {[%clk 0:02:46.6]} 9... Bxc4 {[%clk
0:03:04.4]} 10. Qxc4 {[%clk 0:02:48.5]} 10... Qd5 {[%clk 0:03:05.9]} 11. Nbd2
{[%clk 0:02:47.8]} 11... Be7 {[%clk 0:03:03.5]} 12. O-O {[%clk 0:02:48]} 12...
O-O {[%clk 0:03:04.4]} 13. Qc2 {[%clk 0:02:48.9]} 13... Rc8 {[%clk 0:03:05.1]}
14. Nb3 {[%clk 0:02:50.2]} 14... c5 {[%clk 0:03:02.8]} 15. dxc5 {[%clk
0:02:47.5]} 15... Nbd7 {[%clk 0:03:03.1]} 16. Rd1 {[%clk 0:02:47.6]} 16... Qb7
{[%clk 0:03:03.8]} 17. Bd2 {[%clk 0:02:26.9]} 17... Bxc5 {[%clk 0:02:53.5]} 18.
Nxc5 {[%clk 0:02:25.5]} 18... Nxc5 {[%clk 0:02:54.1]} 19. Be1 {[%clk 0:01:59.7]}
19... a5 {[%clk 0:02:41.8]} 20. Qe2 {[%clk 0:01:55.6]} 20... h6 {[%clk
0:02:41.1]} 21. Nd4 {[%clk 0:01:56.3]} 21... Rd8 {[%clk 0:02:17.3]} 22. f3
{[%clk 0:01:54.2]} 22... Nd5 {[%clk 0:02:12.9]} 23. e4 {[%clk 0:01:39.5]} 23...
Nf4 {[%clk 0:02:09.8]} 24. Qe3 {[%clk 0:01:37.4]} 24... Nfd3 {[%clk 0:02:04.7]}
25. Bg3 {[%clk 0:01:00.6]} 25... Nxb2 {[%clk 0:01:59.2]} 26. Rdc1 {[%clk
0:01:00.7]} 26... Nbd3 {[%clk 0:01:59.2]} 27. Rd1 {[%clk 0:00:50.4]} 27... b3
{[%clk 0:01:58.6]} 28. Rab1 {[%clk 0:00:47.9]} 28... b2 {[%clk 0:01:56.4]} 29.
Nb5 {[%clk 0:00:30.5]} 29... e5 {[%clk 0:01:54.9]} 30. Nc3 {[%clk 0:00:27.9]}
30... Qb3 {[%clk 0:01:22.3]} 31. Nd5 {[%clk 0:00:29.1]} 31... f5 {[%clk
0:01:23.1]} 32. Bxe5 {[%clk 0:00:27.7]} 32... Nxe5 {[%clk 0:01:16.3]} 33. Qxc5
{[%clk 0:00:26.8]} 33... Rac8 {[%clk 0:01:15.8]} 34. Ne7+ {[%clk 0:00:26.6]}
34... Kh7 {[%clk 0:01:14.8]} 35. Qxe5 {[%clk 0:00:20.9]} 35... Rxd1+ {[%clk
0:01:14.7]} 36. Kf2 {[%clk 0:00:22.5]} 36... Rd2+ {[%clk 0:00:51.2]} 37. Kg3
{[%clk 0:00:23.1]} 37... Rf8 {[%clk 0:00:50.6]} 38. Nxf5 {[%clk 0:00:22.1]}
38... Rf7 {[%clk 0:00:49.7]} 39. h4 {[%clk 0:00:20.3]} 39... Rxg2+ {[%clk
0:00:49.2]} 40. Kxg2 {[%clk 0:00:17.5]} 40... Qc2+ {[%clk 0:00:50.4]} 41. Kg3
{[%clk 0:00:19.4]} 41... Qxb1 {[%clk 0:00:51.8]} 42. Nd6 {[%clk 0:00:20.4]}
42... Qg1+ {[%clk 0:00:52.7]} 0-1

[Event "*** Titled Tuesday Blitz AM"]
[Site "Chess.com"]
[Date "2020.01.07"]
[Round "6"]
[White "mortngabriel"]
[Black "IwkooO"]
[Result "0-1"]
[WhiteElo "2385"]
[BlackElo "2565"]
[TimeControl "180+2"]
[EndTime "10:18:48 PST"]
[Termination "IwkooO won by resignation"]

1. d4 {[%clk 0:03:01.9]} 1... Nf6 {[%clk 0:03:01]} 2. Nc3 {[%clk 0:03:01.6]}
2... e6 {[%clk 0:03:00.7]} 3. e4 {[%clk 0:03:01.4]} 3... Bb4 {[%clk 0:03:01.9]}
4. e5 {[%clk 0:03:02.2]} 4... Nd5 {[%clk 0:02:49]} 5. Bd2 {[%clk 0:03:01.2]}
5... d6 {[%clk 0:02:42.3]} 6. Nf3 {[%clk 0:02:48.9]} 6... dxe5 {[%clk
0:02:39.5]} 7. Nxe5 {[%clk 0:02:50]} 7... Nd7 {[%clk 0:02:26]} 8. Nxd5 {[%clk
0:02:06.9]} 8... Bxd2+ {[%clk 0:02:27.9]} 9. Qxd2 {[%clk 0:02:08.6]} 9... Nxe5
{[%clk 0:02:27.2]} 10. dxe5 {[%clk 0:02:03.8]} 10... Qxd5 {[%clk 0:02:27]} 11.
Qxd5 {[%clk 0:02:02.2]} 11... exd5 {[%clk 0:02:28.9]} 12. Bd3 {[%clk 0:01:59.1]}
12... Ke7 {[%clk 0:02:28]} 13. Kd2 {[%clk 0:01:55.9]} 13... c5 {[%clk
0:02:29.1]} 14. c3 {[%clk 0:01:55.7]} 14... b6 {[%clk 0:02:12.2]} 15. f4 {[%clk
0:01:54.8]} 15... Bb7 {[%clk 0:02:13.5]} 16. Rae1 {[%clk 0:01:49.7]} 16... Rad8
{[%clk 0:02:14]} 17. Rhf1 {[%clk 0:01:42.2]} 17... d4 {[%clk 0:02:15.2]} 18. Be4
{[%clk 0:01:37.3]} 18... dxc3+ {[%clk 0:02:10]} 19. Kxc3 {[%clk 0:01:37.3]}
19... Ba6 {[%clk 0:02:09.1]} 20. Rf2 {[%clk 0:01:34.3]} 20... Rd4 {[%clk
0:02:10.6]} 21. Rd2 {[%clk 0:01:15.9]} 21... Rhd8 {[%clk 0:02:10.1]} 22. Rxd4
{[%clk 0:01:14.7]} 22... Rxd4 {[%clk 0:02:12]} 23. b3 {[%clk 0:00:58]} 23... g6
{[%clk 0:01:57.6]} 24. g4 {[%clk 0:00:51.9]} 24... f6 {[%clk 0:01:47.9]} 25. f5
{[%clk 0:00:45.4]} 25... fxe5 {[%clk 0:01:32.9]} 26. fxg6 {[%clk 0:00:44.5]}
26... hxg6 {[%clk 0:01:34.8]} 27. h4 {[%clk 0:00:22.6]} 27... Kf7 {[%clk
0:01:34.6]} 28. h5 {[%clk 0:00:19.9]} 28... gxh5 {[%clk 0:01:36]} 29. gxh5
{[%clk 0:00:21.8]} 29... Kg7 {[%clk 0:01:37.6]} 30. Bg6 {[%clk 0:00:19.3]} 30...
Kf6 {[%clk 0:01:22.5]} 31. Be4 {[%clk 0:00:14]} 31... Kg5 {[%clk 0:01:15]} 32.
Bg6 {[%clk 0:00:13]} 32... Kf6 {[%clk 0:00:39]} 33. Be4 {[%clk 0:00:12.5]} 33...
Kg7 {[%clk 0:00:39.5]} 34. Bg6 {[%clk 0:00:13.5]} 34... Rd5 {[%clk 0:00:41.1]}
35. Be4 {[%clk 0:00:14.2]} 35... Rd6 {[%clk 0:00:36.9]} 36. Bf3 {[%clk
0:00:11.7]} 36... Rd3+ {[%clk 0:00:34.1]} 0-1

[Event "*** Titled Tuesday Blitz AM"]
[Site "Chess.com"]
[Date "2020.01.07"]
[Round "6"]
[White "ExcitingTrap"]
[Black "kinga2008"]
[Result "1-0"]
[WhiteElo "2312"]
[BlackElo "1838"]
[TimeControl "180+2"]
[EndTime "10:18:50 PST"]
[Termination "ExcitingTrap won by resignation"]

1. e4 {[%clk 0:03:01.9]} 1... c5 {[%clk 0:01:56.4]} 2. Nf3 {[%clk 0:03:01.9]}
2... d6 {[%clk 0:01:56.2]} 3. Bb5+ {[%clk 0:03:02.5]} 3... Bd7 {[%clk
0:01:56.3]} 4. Bxd7+ {[%clk 0:03:03.4]} 4... Nxd7 {[%clk 0:01:56.4]} 5. O-O
{[%clk 0:03:03.4]} 5... g6 {[%clk 0:01:54.9]} 6. Qe2 {[%clk 0:03:02.5]} 6... Bg7
{[%clk 0:01:50.3]} 7. Rd1 {[%clk 0:03:04]} 7... Ngf6 {[%clk 0:01:46.8]} 8. c3
{[%clk 0:03:05.2]} 8... O-O {[%clk 0:01:45.8]} 9. d4 {[%clk 0:03:06.7]} 9...
cxd4 {[%clk 0:01:45]} 10. cxd4 {[%clk 0:03:08.6]} 10... Qc7 {[%clk 0:01:44.4]}
11. Nc3 {[%clk 0:03:09.9]} 11... a6 {[%clk 0:01:43.5]} 12. e5 {[%clk 0:03:09.1]}
12... Ne8 {[%clk 0:01:38.4]} 13. Nd5 {[%clk 0:03:04.2]} 13... Qd8 {[%clk
0:01:35.5]} 14. Bg5 {[%clk 0:03:05.6]} 14... f6 {[%clk 0:01:31.1]} 15. exf6
{[%clk 0:03:06.4]} 15... exf6 {[%clk 0:01:29.9]} 16. Qe6+ {[%clk 0:03:05.5]}
16... Kh8 {[%clk 0:01:29.2]} 17. Bf4 {[%clk 0:03:02.1]} 17... Nb6 {[%clk
0:01:26.6]} 18. Rac1 {[%clk 0:02:27.8]} 18... Nxd5 {[%clk 0:01:16.3]} 19. Qxd5
{[%clk 0:02:29.7]} 19... Qb6 {[%clk 0:01:16]} 20. b3 {[%clk 0:02:26.7]} 20...
Rd8 {[%clk 0:01:10.8]} 21. Nd2 {[%clk 0:02:16]} 21... Nc7 {[%clk 0:01:09.6]} 22.
Qc4 {[%clk 0:02:12.9]} 22... Nb5 {[%clk 0:01:03.3]} 23. d5 {[%clk 0:02:05.8]}
23... f5 {[%clk 0:00:52.1]} 24. Nf3 {[%clk 0:02:00]} 24... Bb2 {[%clk
0:00:47.8]} 25. Rc2 {[%clk 0:01:31.4]} 25... Bg7 {[%clk 0:00:26.1]} 26. Qb4
{[%clk 0:01:13.5]} 26... a5 {[%clk 0:00:18.3]} 27. Qd2 {[%clk 0:01:05.3]} 27...
Na3 {[%clk 0:00:14.3]} 28. Be3 {[%clk 0:01:02.4]} 28... Qb4 {[%clk 0:00:10.2]}
29. Rc7 {[%clk 0:01:03]} 29... b5 {[%clk 0:00:05.1]} 30. Qxb4 {[%clk 0:00:55.9]}
30... axb4 {[%clk 0:00:05.6]} 31. Bd2 {[%clk 0:00:56.7]} 31... Rc8 {[%clk
0:00:05.2]} 32. Rdc1 {[%clk 0:00:52.5]} 32... Rxc7 {[%clk 0:00:04.5]} 33. Rxc7
{[%clk 0:00:54.4]} 33... Re8 {[%clk 0:00:03.1]} 34. Bxb4 {[%clk 0:00:54.7]}
34... Nb1 {[%clk 0:00:04.6]} 35. Rc1 {[%clk 0:00:52.7]} 35... Rb8 {[%clk
0:00:02.6]} 36. Rxb1 {[%clk 0:00:52.5]} 36... Ra8 {[%clk 0:00:04.5]} 37. a3
{[%clk 0:00:51.8]} 37... Kg8 {[%clk 0:00:04.5]} 38. Bxd6 {[%clk 0:00:51.9]} 1-0

[Event "*** Titled Tuesday Blitz AM"]
[Site "Chess.com"]
[Date "2020.01.07"]
[Round "6"]
[White "Flawless_Fighter"]
[Black "korbul"]
[Result "1-0"]
[WhiteElo "2468"]
[BlackElo "2630"]
[TimeControl "180+2"]
[EndTime "10:18:51 PST"]
[Termination "Flawless_Fighter won by checkmate"]

1. e4 {[%clk 0:03:01.9]} 1... c5 {[%clk 0:03:00.5]} 2. Nf3 {[%clk 0:03:02.7]}
2... e6 {[%clk 0:03:01.7]} 3. g3 {[%clk 0:03:02.9]} 3... a6 {[%clk 0:03:00.9]}
4. Bg2 {[%clk 0:03:03.3]} 4... Nc6 {[%clk 0:03:02.2]} 5. O-O {[%clk 0:03:04.2]}
5... Nf6 {[%clk 0:03:02.7]} 6. Re1 {[%clk 0:03:04]} 6... Qc7 {[%clk 0:03:02.2]}
7. b3 {[%clk 0:02:57.8]} 7... Be7 {[%clk 0:02:51.8]} 8. e5 {[%clk 0:02:56.1]}
8... Ng4 {[%clk 0:02:37.6]} 9. Qe2 {[%clk 0:02:44.3]} 9... h5 {[%clk 0:02:35.4]}
10. Bb2 {[%clk 0:02:27.2]} 10... b6 {[%clk 0:02:34.9]} 11. h3 {[%clk 0:02:15.6]}
11... Nh6 {[%clk 0:02:35.1]} 12. c4 {[%clk 0:02:11.4]} 12... Nf5 {[%clk
0:02:31.7]} 13. Nc3 {[%clk 0:02:10.4]} 13... Bb7 {[%clk 0:02:32.2]} 14. Ne4
{[%clk 0:02:09.8]} 14... Ncd4 {[%clk 0:02:01.8]} 15. Nxd4 {[%clk 0:02:08.9]}
15... cxd4 {[%clk 0:02:02.8]} 16. f4 {[%clk 0:01:32.4]} 16... a5 {[%clk
0:01:52]} 17. Qf2 {[%clk 0:01:27.2]} 17... Bc5 {[%clk 0:01:06.3]} 18. Kh2 {[%clk
0:01:17.1]} 18... O-O-O {[%clk 0:01:05.5]} 19. a3 {[%clk 0:01:14.2]} 19... h4
{[%clk 0:00:59.8]} 20. g4 {[%clk 0:01:10.6]} 20... Ng3 {[%clk 0:00:56.6]} 21.
Bxd4 {[%clk 0:01:04.3]} 21... Nxe4 {[%clk 0:00:50.4]} 22. Bxe4 {[%clk
0:01:04.8]} 22... f5 {[%clk 0:00:46.8]} 23. Bxb7+ {[%clk 0:00:58.2]} 23... Kxb7
{[%clk 0:00:46.2]} 24. gxf5 {[%clk 0:00:47.8]} 24... exf5 {[%clk 0:00:47.1]} 25.
Rg1 {[%clk 0:00:40.1]} 25... d6 {[%clk 0:00:35.4]} 26. exd6 {[%clk 0:00:23]}
26... Rxd6 {[%clk 0:00:32.8]} 27. Rxg7 {[%clk 0:00:21.6]} 27... Rd7 {[%clk
0:00:16]} 28. Rxd7 {[%clk 0:00:22.7]} 28... Qxd7 {[%clk 0:00:17]} 29. Qg2+
{[%clk 0:00:24.3]} 29... Ka7 {[%clk 0:00:17.5]} 30. Bxh8 {[%clk 0:00:25.7]}
30... Qd3 {[%clk 0:00:16.4]} 31. b4 {[%clk 0:00:21.9]} 31... Bd6 {[%clk
0:00:14.8]} 32. Be5 {[%clk 0:00:21.5]} 32... Bxe5 {[%clk 0:00:15.9]} 33. fxe5
{[%clk 0:00:23.4]} 33... Qxc4 {[%clk 0:00:17.1]} 34. Rf1 {[%clk 0:00:19.7]}
34... a4 {[%clk 0:00:16.8]} 35. Rxf5 {[%clk 0:00:19.4]} 35... Qb3 {[%clk
0:00:17.6]} 36. Rg5 {[%clk 0:00:17.2]} 36... Qxa3 {[%clk 0:00:18.4]} 37. Rg7+
{[%clk 0:00:18.3]} 37... Ka6 {[%clk 0:00:19.5]} 38. Qf1+ {[%clk 0:00:18.5]}
38... b5 {[%clk 0:00:18.9]} 39. Qf6# {[%clk 0:00:20]} 1-0